[Event "*** Titled Tuesday Blitz"]
[Site "Chess.com"]
[Date "2021.02.09"]
[Round "3"]
[White "ural58"]
[Black "zimmm36"]
[Result "1-0"]
[WhiteElo "2481"]
[BlackElo "2197"]
[TimeControl "180+1"]
[EndTime "10:26:24 PST"]
[Termination "ural58 won by resignation"]

1. e4 {[%clk 0:03:00.9]} 1... e5 {[%clk 0:02:57.6]} 2. f4 {[%clk 0:03:00.3]}
2... d5 {[%clk 0:02:57]} 3. exd5 {[%clk 0:03:00]} 3... exf4 {[%clk 0:02:57.4]}
4. Nf3 {[%clk 0:02:59.8]} 4... Nf6 {[%clk 0:02:56.8]} 5. Bb5+ {[%clk 0:02:59.8]}
5... c6 {[%clk 0:02:52.8]} 6. dxc6 {[%clk 0:02:59.9]} 6... Nxc6 {[%clk
0:02:53.7]} 7. Nc3 {[%clk 0:03:00]} 7... Bd6 {[%clk 0:02:52.5]} 8. Qe2+ {[%clk
0:03:00.2]} 8... Be6 {[%clk 0:02:52]} 9. Nd4 {[%clk 0:03:00.5]} 9... Qd7 {[%clk
0:02:48.5]} 10. Bxc6 {[%clk 0:02:54.5]} 10... bxc6 {[%clk 0:02:48.3]} 11. Nxe6
{[%clk 0:02:54.3]} 11... Qxe6 {[%clk 0:02:47]} 12. d4 {[%clk 0:02:45.7]} 12...
Nd5 {[%clk 0:02:40.5]} 13. Qxe6+ {[%clk 0:02:16.5]} 13... fxe6 {[%clk
0:02:40.2]} 14. Ne4 {[%clk 0:02:17.4]} 14... Kd7 {[%clk 0:02:34.5]} 15. c4
{[%clk 0:02:12.1]} 15... Ne3 {[%clk 0:02:30.4]} 16. Bxe3 {[%clk 0:02:11.5]}
16... fxe3 {[%clk 0:02:30.9]} 17. Ke2 {[%clk 0:02:12]} 17... Rab8 {[%clk
0:02:28.9]} 18. b3 {[%clk 0:02:11.7]} 18... a5 {[%clk 0:02:22.3]} 19. Rhf1
{[%clk 0:02:05.5]} 19... Rhf8 {[%clk 0:02:15.7]} 20. Rxf8 {[%clk 0:01:53.6]}
20... Rxf8 {[%clk 0:02:16.6]} 21. Nxd6 {[%clk 0:01:52.6]} 21... Kxd6 {[%clk
0:02:17.5]} 22. Kxe3 {[%clk 0:01:52.7]} 22... a4 {[%clk 0:02:13.9]} 23. b4
{[%clk 0:01:50.9]} 23... e5 {[%clk 0:02:13.4]} 24. dxe5+ {[%clk 0:01:42.3]}
24... Kxe5 {[%clk 0:02:14.3]} 25. Rd1 {[%clk 0:01:42.4]} 25... a3 {[%clk
0:01:47.1]} 26. Rd3 {[%clk 0:01:39.3]} 26... Rb8 {[%clk 0:01:46.8]} 27. Rb3
{[%clk 0:01:38.3]} 27... g5 {[%clk 0:01:43.1]} 28. Kd3 {[%clk 0:01:38.4]} 28...
g4 {[%clk 0:01:35.5]} 29. g3 {[%clk 0:01:38.1]} 29... h5 {[%clk 0:01:34.4]} 30.
Kc3 {[%clk 0:01:36]} 30... Rf8 {[%clk 0:01:31.1]} 31. b5 {[%clk 0:01:28.1]}
31... cxb5 {[%clk 0:01:26.6]} 32. Rxb5+ {[%clk 0:01:28]} 32... Ke4 {[%clk
0:01:20.6]} 33. Rxh5 {[%clk 0:01:27.9]} 33... Rf2 {[%clk 0:01:19.6]} 34. Kb3
{[%clk 0:01:27.8]} 34... Rxh2 {[%clk 0:01:19.4]} 35. Rxh2 {[%clk 0:01:27.1]} 1-0

[Event "*** Titled Tuesday Blitz"]
[Site "Chess.com"]
[Date "2021.02.09"]
[Round "3"]
[White "Gabrielian_Artur"]
[Black "GianmarcoVaR"]
[Result "1-0"]
[WhiteElo "2797"]
[BlackElo "2591"]
[TimeControl "180+1"]
[EndTime "10:26:27 PST"]
[Termination "Gabrielian_Artur won by resignation"]

1. c4 {[%clk 0:03:00.9]} 1... e5 {[%clk 0:02:58.8]} 2. Nc3 {[%clk 0:02:58.9]}
2... Nf6 {[%clk 0:02:58.4]} 3. d3 {[%clk 0:02:59.2]} 3... c6 {[%clk 0:02:53.1]}
4. Nf3 {[%clk 0:02:58.1]} 4... Bd6 {[%clk 0:02:52.2]} 5. g4 {[%clk 0:02:43.4]}
5... Bc7 {[%clk 0:02:48.2]} 6. g5 {[%clk 0:02:41.4]} 6... Nh5 {[%clk 0:02:47.6]}
7. e3 {[%clk 0:02:40.1]} 7... d6 {[%clk 0:02:32.7]} 8. Be2 {[%clk 0:02:36.8]}
8... g6 {[%clk 0:02:32.8]} 9. Rg1 {[%clk 0:02:33.8]} 9... Be6 {[%clk 0:02:29.3]}
10. d4 {[%clk 0:02:25.2]} 10... O-O {[%clk 0:02:19.2]} 11. d5 {[%clk 0:02:21.3]}
11... Bf5 {[%clk 0:02:11.8]} 12. Nh4 {[%clk 0:02:20.1]} 12... Ng7 {[%clk
0:02:10.4]} 13. Nxf5 {[%clk 0:02:13.5]} 13... Nxf5 {[%clk 0:02:11]} 14. Ne4
{[%clk 0:02:12.7]} 14... Ba5+ {[%clk 0:02:03.1]} 15. Kf1 {[%clk 0:02:12.2]}
15... Kg7 {[%clk 0:01:55.8]} 16. Bg4 {[%clk 0:02:04.8]} 16... Qc7 {[%clk
0:01:15.7]} 17. Bxf5 {[%clk 0:01:54.9]} 17... gxf5 {[%clk 0:01:15.7]} 18. Nf6
{[%clk 0:01:55.1]} 18... Rh8 {[%clk 0:01:07.4]} 19. Qh5 {[%clk 0:01:43.5]} 19...
Kf8 {[%clk 0:01:06.9]} 20. g6 {[%clk 0:01:28.1]} 20... fxg6 {[%clk 0:00:56.3]}
21. Rxg6 {[%clk 0:01:27.2]} 21... Qf7 {[%clk 0:00:53.6]} 22. Qh6+ {[%clk
0:01:21.2]} 22... Ke7 {[%clk 0:00:54]} 23. Rg7 {[%clk 0:01:21.4]} 1-0

[Event "*** Titled Tuesday Blitz"]
[Site "Chess.com"]
[Date "2021.02.09"]
[Round "3"]
[White "krzyzan94"]
[Black "Alohamora11"]
[Result "1-0"]
[WhiteElo "2694"]
[BlackElo "2474"]
[TimeControl "180+1"]
[EndTime "10:26:36 PST"]
[Termination "krzyzan94 won by resignation"]

1. c4 {[%clk 0:03:00.9]} 1... c5 {[%clk 0:02:59.6]} 2. Nf3 {[%clk 0:03:00]} 2...
g6 {[%clk 0:03:00]} 3. h4 {[%clk 0:02:58.3]} 3... h6 {[%clk 0:02:53.2]} 4. Nc3
{[%clk 0:02:57.8]} 4... Bg7 {[%clk 0:02:50.5]} 5. e4 {[%clk 0:02:57]} 5... Nc6
{[%clk 0:02:50.3]} 6. d3 {[%clk 0:02:57.1]} 6... e6 {[%clk 0:02:47.3]} 7. Be3
{[%clk 0:02:55.8]} 7... d6 {[%clk 0:02:46.8]} 8. Qd2 {[%clk 0:02:55.7]} 8...
Nge7 {[%clk 0:02:42.9]} 9. Be2 {[%clk 0:02:51.7]} 9... b6 {[%clk 0:02:30.1]} 10.
d4 {[%clk 0:02:49.6]} 10... cxd4 {[%clk 0:02:24.4]} 11. Nxd4 {[%clk 0:02:50.5]}
11... Nxd4 {[%clk 0:02:24]} 12. Bxd4 {[%clk 0:02:51.4]} 12... O-O {[%clk
0:02:23.5]} 13. Bxg7 {[%clk 0:02:50.4]} 13... Kxg7 {[%clk 0:02:24.4]} 14. O-O-O
{[%clk 0:02:51.1]} 14... d5 {[%clk 0:01:53.4]} 15. exd5 {[%clk 0:02:38.1]} 15...
exd5 {[%clk 0:01:51.7]} 16. cxd5 {[%clk 0:02:39]} 16... Nf5 {[%clk 0:01:32.9]}
17. h5 {[%clk 0:02:38.5]} 17... g5 {[%clk 0:01:27.9]} 18. d6 {[%clk 0:02:32.7]}
18... Bb7 {[%clk 0:01:18.8]} 19. Bg4 {[%clk 0:02:25.8]} 19... Qf6 {[%clk
0:01:10.5]} 20. Bxf5 {[%clk 0:02:24.6]} 20... Qxf5 {[%clk 0:01:08]} 21. Qd4+
{[%clk 0:02:25.5]} 21... Kg8 {[%clk 0:01:04.6]} 22. f3 {[%clk 0:02:25.8]} 22...
Rac8 {[%clk 0:00:57.9]} 23. Rhe1 {[%clk 0:02:22.7]} 23... Rfd8 {[%clk 0:00:58]}
24. Re5 {[%clk 0:02:20.9]} 24... Qh7 {[%clk 0:00:49.5]} 25. Re7 {[%clk
0:02:19.3]} 25... Ba6 {[%clk 0:00:48.3]} 26. Rde1 {[%clk 0:02:14.9]} 26... Bb5
{[%clk 0:00:28.6]} 27. d7 {[%clk 0:02:11.2]} 27... Rb8 {[%clk 0:00:20.9]} 28.
Nxb5 {[%clk 0:02:09.6]} 28... a6 {[%clk 0:00:15]} 29. Re8+ {[%clk 0:02:08.9]}
1-0

[Event "*** Titled Tuesday Blitz"]
[Site "Chess.com"]
[Date "2021.02.09"]
[Round "3"]
[White "Margency"]
[Black "GOGIEFF"]
[Result "0-1"]
[WhiteElo "2653"]
[BlackElo "2902"]
[TimeControl "180+1"]
[EndTime "10:26:46 PST"]
[Termination "GOGIEFF won by resignation"]

1. e4 {[%clk 0:03:00.9]} 1... c5 {[%clk 0:02:59.5]} 2. Nf3 {[%clk 0:03:00.7]}
2... d6 {[%clk 0:02:59.8]} 3. d4 {[%clk 0:03:01.4]} 3... cxd4 {[%clk 0:03:00.1]}
4. Nxd4 {[%clk 0:03:02.3]} 4... Nf6 {[%clk 0:03:00.4]} 5. Nc3 {[%clk 0:03:02.9]}
5... a6 {[%clk 0:03:00.9]} 6. Be3 {[%clk 0:03:03.5]} 6... e6 {[%clk 0:02:59.8]}
7. f3 {[%clk 0:03:02.7]} 7... h5 {[%clk 0:02:59.2]} 8. Qd2 {[%clk 0:03:01.9]}
8... Nbd7 {[%clk 0:02:59.1]} 9. O-O-O {[%clk 0:03:01.4]} 9... b5 {[%clk
0:02:59]} 10. Kb1 {[%clk 0:02:58.8]} 10... Bb7 {[%clk 0:02:58.7]} 11. Bd3 {[%clk
0:02:52.1]} 11... Rc8 {[%clk 0:02:58.3]} 12. h3 {[%clk 0:02:51.7]} 12... h4
{[%clk 0:02:57.7]} 13. Rhe1 {[%clk 0:02:48.2]} 13... Be7 {[%clk 0:02:56.8]} 14.
f4 {[%clk 0:02:22.1]} 14... b4 {[%clk 0:02:53]} 15. Nd5 {[%clk 0:02:22.5]} 15...
exd5 {[%clk 0:02:51]} 16. exd5 {[%clk 0:02:21.7]} 16... Nxd5 {[%clk 0:02:44.1]}
17. Nf5 {[%clk 0:02:16.8]} 17... O-O {[%clk 0:02:44]} 18. Bd4 {[%clk 0:02:13]}
18... Bf6 {[%clk 0:02:38.6]} 19. Be4 {[%clk 0:02:12.1]} 19... Nc3+ {[%clk
0:02:19.3]} 20. bxc3 {[%clk 0:02:07.1]} 20... bxc3 {[%clk 0:02:19.4]} 21. Qd3
{[%clk 0:02:00.3]} 21... Nc5 {[%clk 0:01:45]} 22. Bxc5 {[%clk 0:01:43.6]} 22...
Rxc5 {[%clk 0:01:45.9]} 23. Ka1 {[%clk 0:01:31.4]} 23... d5 {[%clk 0:01:45.3]}
24. Bf3 {[%clk 0:01:22.2]} 24... Ra5 {[%clk 0:01:45.3]} 25. Rb1 {[%clk
0:01:00.4]} 25... Rxa2+ {[%clk 0:01:41.9]} 26. Kxa2 {[%clk 0:01:00.6]} 26...
Qa5+ {[%clk 0:01:42.5]} 27. Kb3 {[%clk 0:01:00.5]} 27... Rb8 {[%clk 0:01:39.9]}
0-1

[Event "*** Titled Tuesday Blitz"]
[Site "Chess.com"]
[Date "2021.02.09"]
[Round "3"]
[White "Stormeman100100"]
[Black "MartinMatthiesen"]
[Result "0-1"]
[WhiteElo "2541"]
[BlackElo "2392"]
[TimeControl "180+1"]
[EndTime "10:26:49 PST"]
[Termination "MartinMatthiesen won by checkmate"]

1. e4 {[%clk 0:03:00.9]} 1... c6 {[%clk 0:02:58.7]} 2. d4 {[%clk 0:02:59]} 2...
d5 {[%clk 0:02:58.7]} 3. exd5 {[%clk 0:02:57.4]} 3... cxd5 {[%clk 0:02:58.6]} 4.
c4 {[%clk 0:02:58]} 4... Nf6 {[%clk 0:02:57.9]} 5. Nc3 {[%clk 0:02:55.2]} 5...
Nc6 {[%clk 0:02:57.7]} 6. Nf3 {[%clk 0:02:54]} 6... Bg4 {[%clk 0:02:56.9]} 7.
Bg5 {[%clk 0:02:53.8]} 7... e6 {[%clk 0:02:40.9]} 8. cxd5 {[%clk 0:02:47.7]}
8... exd5 {[%clk 0:02:40.2]} 9. Qe2+ {[%clk 0:02:48.2]} 9... Be7 {[%clk
0:02:22.1]} 10. Bxf6 {[%clk 0:02:35.4]} 10... gxf6 {[%clk 0:02:23]} 11. O-O-O
{[%clk 0:02:26.3]} 11... Qa5 {[%clk 0:02:20.2]} 12. Kb1 {[%clk 0:02:24.7]} 12...
Bf5+ {[%clk 0:02:16.9]} 13. Ka1 {[%clk 0:02:24.6]} 13... Nb4 {[%clk 0:02:14.9]}
14. Ne1 {[%clk 0:02:09.4]} 14... a6 {[%clk 0:01:58.7]} 15. Qd2 {[%clk
0:02:08.6]} 15... Rc8 {[%clk 0:01:53.6]} 16. Nd3 {[%clk 0:02:02.2]} 16... O-O
{[%clk 0:01:24.6]} 17. Be2 {[%clk 0:01:57.7]} 17... Bg6 {[%clk 0:01:14.4]} 18.
Rc1 {[%clk 0:01:56.7]} 18... Nxa2 {[%clk 0:01:07.1]} 19. Kb1 {[%clk 0:01:45.3]}
19... Bb4 {[%clk 0:00:55.3]} 20. Rcd1 {[%clk 0:01:00.7]} 20... Bxc3 {[%clk
0:00:53.1]} 21. bxc3 {[%clk 0:01:00.9]} 21... Nxc3+ {[%clk 0:00:52.7]} 22. Kb2
{[%clk 0:01:01.8]} 22... Qa2+ {[%clk 0:00:52.1]} 23. Kc1 {[%clk 0:01:00.9]}
23... Nxe2# {[%clk 0:00:51.8]} 0-1

[Event "*** Titled Tuesday Blitz"]
[Site "Chess.com"]
[Date "2021.02.09"]
[Round "3"]
[White "YIYUKI"]
[Black "sbouchet"]
[Result "0-1"]
[WhiteElo "2161"]
[BlackElo "2341"]
[TimeControl "180+1"]
[EndTime "10:26:52 PST"]
[Termination "sbouchet won by resignation"]

1. d4 {[%clk 0:03:00.9]} 1... Nf6 {[%clk 0:02:59.3]} 2. c4 {[%clk 0:03:00.6]}
2... e6 {[%clk 0:02:59.8]} 3. Nc3 {[%clk 0:02:59.5]} 3... Bb4 {[%clk 0:03:00.1]}
4. e3 {[%clk 0:02:59.5]} 4... Bxc3+ {[%clk 0:02:59.8]} 5. bxc3 {[%clk 0:02:59]}
5... b6 {[%clk 0:03:00.5]} 6. Bd3 {[%clk 0:02:58.5]} 6... Bb7 {[%clk 0:03:00.8]}
7. f3 {[%clk 0:02:58.9]} 7... d5 {[%clk 0:02:59.9]} 8. Ne2 {[%clk 0:02:58.5]}
8... O-O {[%clk 0:02:57.5]} 9. O-O {[%clk 0:02:58.4]} 9... c5 {[%clk 0:02:56.6]}
10. cxd5 {[%clk 0:02:57.3]} 10... exd5 {[%clk 0:02:55]} 11. a4 {[%clk
0:02:51.8]} 11... Re8 {[%clk 0:02:42.3]} 12. Ra2 {[%clk 0:02:50.2]} 12... Nbd7
{[%clk 0:02:38.3]} 13. Ng3 {[%clk 0:02:49.4]} 13... Nf8 {[%clk 0:02:16]} 14. Re2
{[%clk 0:02:48.1]} 14... Qd7 {[%clk 0:02:00.6]} 15. Bb2 {[%clk 0:02:45.2]} 15...
Ne6 {[%clk 0:01:58]} 16. Kh1 {[%clk 0:02:34.6]} 16... Rad8 {[%clk 0:01:54.3]}
17. Bb5 {[%clk 0:02:13.4]} 17... Bc6 {[%clk 0:01:53.4]} 18. Bxc6 {[%clk
0:02:13.7]} 18... Qxc6 {[%clk 0:01:54.3]} 19. e4 {[%clk 0:02:11.4]} 19... cxd4
{[%clk 0:01:13.2]} 20. cxd4 {[%clk 0:02:08.5]} 20... Rc8 {[%clk 0:01:09]} 21. e5
{[%clk 0:02:03.7]} 21... Nf4 {[%clk 0:00:51.8]} 22. exf6 {[%clk 0:01:47.6]}
22... Nxe2 {[%clk 0:00:51.1]} 23. Nxe2 {[%clk 0:01:48.2]} 23... Qc2 {[%clk
0:00:50.8]} 24. Qe1 {[%clk 0:01:10.6]} 24... Qxe2 {[%clk 0:00:44.3]} 25. Qg3
{[%clk 0:01:09.8]} 0-1

[Event "*** Titled Tuesday Blitz"]
[Site "Chess.com"]
[Date "2021.02.09"]
[Round "3"]
[White "zacachess"]
[Black "ecwinslow"]
[Result "0-1"]
[WhiteElo "2430"]
[BlackElo "2265"]
[TimeControl "180+1"]
[EndTime "10:27:12 PST"]
[Termination "ecwinslow won on time"]

1. e4 {[%clk 0:03:00.9]} 1... c5 {[%clk 0:02:59.8]} 2. Nf3 {[%clk 0:03:00.5]}
2... d6 {[%clk 0:02:58.4]} 3. d4 {[%clk 0:03:01.1]} 3... cxd4 {[%clk 0:02:58.8]}
4. Nxd4 {[%clk 0:03:01.9]} 4... Nf6 {[%clk 0:02:58.8]} 5. Nc3 {[%clk 0:03:02.4]}
5... g6 {[%clk 0:02:56]} 6. Be3 {[%clk 0:03:01.7]} 6... Bg7 {[%clk 0:02:56.1]}
7. Be2 {[%clk 0:03:02]} 7... O-O {[%clk 0:02:56.5]} 8. Nb3 {[%clk 0:03:02.5]}
8... Nc6 {[%clk 0:02:56.1]} 9. f4 {[%clk 0:03:02.2]} 9... a5 {[%clk 0:02:51.7]}
10. a4 {[%clk 0:03:01.5]} 10... Be6 {[%clk 0:02:51.1]} 11. O-O {[%clk 0:03:02]}
11... Rc8 {[%clk 0:02:45.1]} 12. Nd4 {[%clk 0:03:00.7]} 12... Nxd4 {[%clk
0:02:41.4]} 13. Bxd4 {[%clk 0:03:01.6]} 13... Bc4 {[%clk 0:02:38.5]} 14. Bd3
{[%clk 0:02:18.6]} 14... Re8 {[%clk 0:02:34.3]} 15. Qe2 {[%clk 0:02:10.7]} 15...
e5 {[%clk 0:02:27.2]} 16. fxe5 {[%clk 0:02:04.7]} 16... Bxd3 {[%clk 0:02:24.9]}
17. cxd3 {[%clk 0:02:02.1]} 17... dxe5 {[%clk 0:02:24.8]} 18. Be3 {[%clk
0:02:02]} 18... Nh5 {[%clk 0:02:15.7]} 19. Nd5 {[%clk 0:01:57.8]} 19... Re6
{[%clk 0:01:56.7]} 20. Qf2 {[%clk 0:01:37.1]} 20... Qe8 {[%clk 0:01:42.2]} 21.
Rac1 {[%clk 0:01:19.2]} 21... Rec6 {[%clk 0:01:40.1]} 22. Rc3 {[%clk 0:00:55.9]}
22... Nf4 {[%clk 0:01:23.2]} 0-1

[Event "*** Titled Tuesday Blitz"]
[Site "Chess.com"]
[Date "2021.02.09"]
[Round "3"]
[White "federicosellitti"]
[Black "paulrusan"]
[Result "1-0"]
[WhiteElo "2441"]
[BlackElo "2229"]
[TimeControl "180+1"]
[EndTime "10:27:17 PST"]
[Termination "federicosellitti won by checkmate"]

1. e4 {[%clk 0:03:00.9]} 1... c5 {[%clk 0:02:59.4]} 2. Nc3 {[%clk 0:03:00.4]}
2... e6 {[%clk 0:02:59.2]} 3. g3 {[%clk 0:02:59.7]} 3... a6 {[%clk 0:02:58.7]}
4. Bg2 {[%clk 0:02:59.5]} 4... Nc6 {[%clk 0:02:59.2]} 5. d3 {[%clk 0:02:59.1]}
5... Nf6 {[%clk 0:02:58.7]} 6. Nge2 {[%clk 0:02:57.5]} 6... d6 {[%clk
0:02:58.3]} 7. O-O {[%clk 0:02:46.8]} 7... Be7 {[%clk 0:02:58.2]} 8. h3 {[%clk
0:02:46.2]} 8... h5 {[%clk 0:02:56.4]} 9. Be3 {[%clk 0:02:46.3]} 9... Qc7 {[%clk
0:02:53.3]} 10. d4 {[%clk 0:02:40.8]} 10... cxd4 {[%clk 0:02:51.7]} 11. Nxd4
{[%clk 0:02:41.7]} 11... Bd7 {[%clk 0:02:51.6]} 12. a4 {[%clk 0:02:29.7]} 12...
Nxd4 {[%clk 0:02:40]} 13. Bxd4 {[%clk 0:02:28.3]} 13... Bc6 {[%clk 0:02:40]} 14.
a5 {[%clk 0:02:13.6]} 14... O-O {[%clk 0:02:16.3]} 15. f4 {[%clk 0:02:06.2]}
15... e5 {[%clk 0:02:11.7]} 16. Bb6 {[%clk 0:01:57.2]} 16... Qb8 {[%clk
0:02:04.1]} 17. f5 {[%clk 0:01:55.4]} 17... Rc8 {[%clk 0:01:52.4]} 18. g4 {[%clk
0:01:30.8]} 18... hxg4 {[%clk 0:01:51.5]} 19. hxg4 {[%clk 0:01:31.7]} 19... Bd8
{[%clk 0:01:50.2]} 20. g5 {[%clk 0:01:29]} 20... Bxb6+ {[%clk 0:01:48.5]} 21.
axb6 {[%clk 0:01:29.9]} 21... Nd7 {[%clk 0:01:48.5]} 22. Qh5 {[%clk 0:01:26.9]}
22... Rf8 {[%clk 0:01:24.8]} 23. Rf3 {[%clk 0:01:11.2]} 23... Re8 {[%clk
0:00:57.3]} 24. g6 {[%clk 0:00:52.2]} 24... Re7 {[%clk 0:00:36]} 25. Qh7+ {[%clk
0:00:51]} 25... Kf8 {[%clk 0:00:35.5]} 26. Qh8# {[%clk 0:00:51.9]} 1-0

[Event "*** Titled Tuesday Blitz"]
[Site "Chess.com"]
[Date "2021.02.09"]
[Round "3"]
[White "mr65"]
[Black "kobemagic"]
[Result "1-0"]
[WhiteElo "2114"]
[BlackElo "2307"]
[TimeControl "180+1"]
[EndTime "10:27:23 PST"]
[Termination "mr65 won by resignation"]

1. e4 {[%clk 0:03:00.9]} 1... Nf6 {[%clk 0:02:55.5]} 2. e5 {[%clk 0:02:59.8]}
2... Nd5 {[%clk 0:02:53.6]} 3. d4 {[%clk 0:02:59.4]} 3... d6 {[%clk 0:02:52.9]}
4. Nf3 {[%clk 0:02:59]} 4... dxe5 {[%clk 0:02:52]} 5. Nxe5 {[%clk 0:02:58]} 5...
c6 {[%clk 0:02:51.3]} 6. Be2 {[%clk 0:02:53.4]} 6... Bf5 {[%clk 0:02:50]} 7. O-O
{[%clk 0:02:51.8]} 7... Nd7 {[%clk 0:02:49.1]} 8. Nxd7 {[%clk 0:02:50.6]} 8...
Qxd7 {[%clk 0:02:48]} 9. a3 {[%clk 0:02:41.6]} 9... e6 {[%clk 0:02:45.6]} 10. c4
{[%clk 0:02:40.4]} 10... Nf6 {[%clk 0:02:44.8]} 11. Nc3 {[%clk 0:02:39.4]} 11...
Bd6 {[%clk 0:02:43.8]} 12. Bg5 {[%clk 0:02:35]} 12... Ne4 {[%clk 0:02:31.4]} 13.
Nxe4 {[%clk 0:02:32.2]} 13... Bxe4 {[%clk 0:02:30.9]} 14. Bf3 {[%clk 0:02:31]}
14... Bxf3 {[%clk 0:02:22.2]} 15. Qxf3 {[%clk 0:02:29.9]} 15... O-O {[%clk
0:02:21.2]} 16. Rad1 {[%clk 0:02:20.9]} 16... Be7 {[%clk 0:02:19.1]} 17. Bxe7
{[%clk 0:02:19.1]} 17... Qxe7 {[%clk 0:02:20]} 18. Rfe1 {[%clk 0:02:17.1]} 18...
Qg5 {[%clk 0:02:12.6]} 19. d5 {[%clk 0:02:12.8]} 19... cxd5 {[%clk 0:02:09.3]}
20. cxd5 {[%clk 0:02:12.1]} 20... exd5 {[%clk 0:02:05.5]} 21. Rxd5 {[%clk
0:02:10.6]} 21... Qg6 {[%clk 0:01:56.5]} 22. Red1 {[%clk 0:02:00.3]} 22... h6
{[%clk 0:01:53.6]} 23. h4 {[%clk 0:01:59]} 23... Rfe8 {[%clk 0:01:49.8]} 24. h5
{[%clk 0:01:57.5]} 24... Qc2 {[%clk 0:01:40.7]} 25. Rd7 {[%clk 0:01:42.2]} 25...
Rf8 {[%clk 0:01:30.8]} 26. Rxb7 {[%clk 0:01:38.1]} 26... a5 {[%clk 0:01:27.5]}
27. Rdd7 {[%clk 0:01:29.8]} 27... Qc4 {[%clk 0:01:13.9]} 28. Rbc7 {[%clk
0:01:21.3]} 28... Qe6 {[%clk 0:01:04.5]} 29. Rxf7 {[%clk 0:01:12.1]} 29... Rxf7
{[%clk 0:01:01.9]} 30. Rxf7 {[%clk 0:00:56.3]} 30... Qxf7 {[%clk 0:01:01]} 31.
Qxa8+ {[%clk 0:00:53.6]} 31... Kh7 {[%clk 0:01:01.9]} 32. Qxa5 {[%clk
0:00:50.4]} 32... Qxh5 {[%clk 0:01:02.8]} 33. Qd2 {[%clk 0:00:46.4]} 33... Qa5
{[%clk 0:01:03.7]} 34. Qxa5 {[%clk 0:00:44.6]} 1-0

[Event "*** Titled Tuesday Blitz"]
[Site "Chess.com"]
[Date "2021.02.09"]
[Round "3"]
[White "Irina_Baraeva"]
[Black "Maksimus1998"]
[Result "0-1"]
[WhiteElo "2239"]
[BlackElo "2497"]
[TimeControl "180+1"]
[EndTime "10:27:28 PST"]
[Termination "Maksimus1998 won by resignation"]

1. d4 {[%clk 0:02:30.8]} 1... d5 {[%clk 0:02:58.5]} 2. Nf3 {[%clk 0:02:29.9]}
2... Bf5 {[%clk 0:02:57]} 3. c4 {[%clk 0:02:29.4]} 3... e6 {[%clk 0:02:56.1]} 4.
Nc3 {[%clk 0:02:29.3]} 4... c6 {[%clk 0:02:55.8]} 5. Bf4 {[%clk 0:02:27.4]} 5...
Nd7 {[%clk 0:02:43.9]} 6. e3 {[%clk 0:02:27.1]} 6... Ngf6 {[%clk 0:02:43]} 7.
Bd3 {[%clk 0:02:26.6]} 7... Bg6 {[%clk 0:02:41.8]} 8. O-O {[%clk 0:02:25.8]}
8... Be7 {[%clk 0:02:41.8]} 9. Re1 {[%clk 0:02:23.8]} 9... O-O {[%clk
0:02:41.7]} 10. e4 {[%clk 0:02:21.3]} 10... dxe4 {[%clk 0:02:41.2]} 11. Nxe4
{[%clk 0:02:18]} 11... Nxe4 {[%clk 0:02:41.5]} 12. Bxe4 {[%clk 0:02:18.2]} 12...
Bxe4 {[%clk 0:02:40]} 13. Rxe4 {[%clk 0:02:17.9]} 13... Nf6 {[%clk 0:02:40.2]}
14. Re2 {[%clk 0:02:13.2]} 14... c5 {[%clk 0:02:40.1]} 15. d5 {[%clk 0:02:02.2]}
15... exd5 {[%clk 0:02:40.2]} 16. cxd5 {[%clk 0:02:00.4]} 16... Bd6 {[%clk
0:02:40.5]} 17. Bg5 {[%clk 0:01:58.5]} 17... h6 {[%clk 0:02:40.6]} 18. Bh4
{[%clk 0:01:57]} 18... g5 {[%clk 0:02:23.6]} 19. Bg3 {[%clk 0:01:56.5]} 19...
Bxg3 {[%clk 0:02:23.3]} 20. hxg3 {[%clk 0:01:53.4]} 20... Qxd5 {[%clk
0:02:23.2]} 21. Qc2 {[%clk 0:01:50.3]} 21... Rfe8 {[%clk 0:02:21.3]} 22. Rd2
{[%clk 0:01:48.1]} 22... Qc6 {[%clk 0:02:13.1]} 23. Rad1 {[%clk 0:01:45.1]}
23... Re6 {[%clk 0:02:10.9]} 24. b3 {[%clk 0:01:11.4]} 24... Rae8 {[%clk
0:02:09.6]} 25. Qf5 {[%clk 0:01:03.6]} 25... b6 {[%clk 0:02:02.9]} 26. Nh2
{[%clk 0:00:53.6]} 26... Qe4 {[%clk 0:02:02.3]} 27. Qxe4 {[%clk 0:00:51.1]}
27... Nxe4 {[%clk 0:02:02.6]} 28. Rd8 {[%clk 0:00:48]} 28... Nc3 {[%clk
0:02:00.8]} 29. Rxe8+ {[%clk 0:00:45.8]} 29... Rxe8 {[%clk 0:02:00.4]} 30. Ra1
{[%clk 0:00:41.2]} 30... Re2 {[%clk 0:01:59]} 31. a3 {[%clk 0:00:40.6]} 31... f5
{[%clk 0:01:57.9]} 32. Nf1 {[%clk 0:00:38.1]} 32... Ne4 {[%clk 0:01:56.2]} 33.
f3 {[%clk 0:00:35.6]} 33... Nc3 {[%clk 0:01:46.9]} 34. b4 {[%clk 0:00:34.2]}
34... c4 {[%clk 0:01:46.3]} 35. Rc1 {[%clk 0:00:32]} 35... Nb5 {[%clk 0:01:37]}
36. Rxc4 {[%clk 0:00:32.2]} 36... Nxa3 {[%clk 0:01:36.9]} 37. Rc8+ {[%clk
0:00:32.8]} 37... Kf7 {[%clk 0:01:36.5]} 38. Rc7+ {[%clk 0:00:33.5]} 38... Re7
{[%clk 0:01:36.3]} 39. Rxa7 {[%clk 0:00:34.4]} 39... Rxa7 {[%clk 0:01:36.1]} 40.
Ne3 {[%clk 0:00:33]} 40... Kg6 {[%clk 0:01:35.5]} 0-1